fUST/lending_fUST_20240502
["ID","MTS","AMOUNT","RATE_DAILY","PERIOD"]
[325226628,1714596679104,-647.78,0.00059999,120]
[325226629,1714596679114,-972.62,0.00059999,120]
[325226630,1714596679123,-500.0,0.00059999,120]
[325226631,1714596679132,-953.99,0.00059999,120]
[325226632,1714596679142,-1932.29,0.00059999,120]
[325226633,1714596679151,-912.85,0.00059999,120]
[325226634,1714596679162,-631.99,0.00059999,120]
[325226635,1714596679171,-564.95,0.00059999,120]
[325226636,1714596679181,-771.7,0.00059999,120]
[325226637,1714596679190,-500.0,0.00059999,120]
[325226638,1714596679200,-124005.64211702,0.0006,30]
[325226639,1714596679209,-2000.0,0.0006,120]
[325226640,1714596679219,-500.0,0.0006,30]
[325226641,1714596679228,-2015.2608977,0.0006,30]
[325226642,1714596679239,-1006.6842156,0.0006,120]
[325226643,1714596679250,-671.22197632,0.0006,12]
[325226644,1714596679259,-250.00638577,0.0006,120]
[325226645,1714596679269,-2000.0,0.0006,2]
[325226646,1714596679278,-5000.91613375,0.0006,120]
[325226647,1714596679287,-5000.0,0.0006,3]
[325226648,1714596679296,-932.0,0.0006,120]
[325226649,1714596679306,-932.0,0.0006,120]
[325226650,1714596679315,-932.0,0.0006,120]
[325226651,1714596679324,-151.0,0.00060055,120]
[325226652,1714596679334,-500.0,0.00060273,120]
[325226653,1714596679343,-500.0,0.00060273,120]
[325226654,1714596679352,-500.0,0.00060273,120]
[325226655,1714596679361,-500.0,0.00060273,120]
[325226656,1714596679371,-538.50022425,0.00060273,120]
[325226657,1714596679380,-1259.78,0.00060273,55]
[325226658,1714596679389,-500.0,0.00060547,120]
[325226659,1714596679398,-605.36,0.00060547,120]
[325226660,1714596679408,-635.9,0.00060547,120]
[325226661,1714596679417,-500.0,0.00060547,120]
[325226662,1714596679426,-500.0,0.00060547,120]
[325226663,1714596679436,-905.44,0.00060547,120]
[325226664,1714596679445,-1823.07,0.00060547,120]
[325226665,1714596679456,-500.0,0.00060547,120]
[325226666,1714596679465,-1540.18,0.00060547,120]
[325226667,1714596679474,-747.85,0.00060547,120]
[325226668,1714596679483,-472.25613007,0.00060547,120]
[325226669,1714596679492,-500.0,0.00060547,120]
[325226670,1714596679501,-582.8,0.00060547,120]
[325226671,1714596679511,-500.0,0.00060547,120]
[325226672,1714596679520,-783.32,0.00060547,120]
[325226673,1714596679529,-500.0,0.00060547,120]
[325226674,1714596679539,-660.58,0.00060547,120]
[325226675,1714596679548,-528.91,0.00060547,120]
[325226676,1714596679558,-651.79,0.00060547,120]
[325226677,1714596679567,-569.39,0.00060547,120]
[325226678,1714596679576,-533.64,0.00060547,120]
[325226679,1714596679585,-893.16,0.00060547,120]
[325226680,1714596679594,-500.0,0.00060547,120]
[325226681,1714596679604,-750.74,0.00060547,120]
[325226682,1714596679613,-212.53056462,0.00060547,120]
[325226683,1714596679623,-500.0,0.00060547,120]
[325226684,1714596679632,-918.03,0.00060547,120]
[325226685,1714596679641,-500.0,0.00060547,120]
[325226686,1714596679651,-809.76,0.00060547,120]
[325226687,1714596679660,-816.25,0.00060547,120]
[325226688,1714596679669,-172.48810442,0.00060547,120]
[325226689,1714596679678,-676.4,0.00060547,120]
[325226690,1714596679687,-500.0,0.00060547,120]
[325226691,1714596679696,-500.0,0.00060547,120]
[325226692,1714596679705,-725.28,0.00060547,120]
[325226693,1714596679715,-617.03,0.00060547,120]
[325226694,1714596679723,-278.46345744,0.00060547,120]
[325226695,1714596679732,-747.13,0.00060547,120]
[325226696,1714596679742,-807.48,0.00060547,120]
[325226697,1714596679751,-500.0,0.00060547,2]
[325226698,1714596679760,-880.55,0.00060547,120]
[325226699,1714596679769,-772.32,0.00060547,120]
[325226700,1714596679778,-1424.37,0.00060547,120]
[325226701,1714596679787,-902.14,0.00060547,120]
[325226702,1714596679796,-622.31,0.00060547,120]
[325226703,1714596679806,-908.32,0.00060547,120]
[325226704,1714596679815,-1274.48,0.00060547,120]
[325226705,1714596679824,-500.0,0.00060547,120]
[325226706,1714596679833,-505.13,0.00060547,120]
[325226707,1714596679842,-2748.45,0.00060547,120]
[325226708,1714596679852,-2748.72,0.00060547,120]
[325226709,1714596679861,-751.55,0.00060547,120]
[325226710,1714596679870,-500.0,0.00060547,120]
[325226711,1714596679879,-500.0,0.00060547,120]
[325226712,1714596679888,-500.0,0.00060547,120]
[325226713,1714596679897,-891.08,0.00060547,120]
[325226714,1714596679906,-542.04,0.00060547,120]
[325226715,1714596679914,-500.0,0.00060547,120]
[325226716,1714596679923,-500.0,0.00060547,120]
[325226717,1714596679933,-718.42,0.00060547,120]
[325226718,1714596679942,-500.0,0.00060547,120]
[325226719,1714596679951,-876.77,0.00060547,120]
[325226720,1714596679964,-500.0,0.00060547,120]
[325226721,1714596679974,-500.0,0.00060547,120]
[325226722,1714596679984,-500.0,0.00060547,120]
[325226723,1714596679996,-500.0,0.00060547,120]
[325226724,1714596680006,-543.06,0.00060547,120]
[325226725,1714596680016,-597.36,0.00060547,120]
[325226726,1714596680026,-500.0,0.00060547,120]
[325226727,1714596680035,-847.59,0.00060547,120]
[325226728,1714596680045,-500.0,0.00060547,120]
[325226729,1714596680055,-552.66,0.00060547,120]
[325226730,1714596680065,-737.95,0.00060547,120]
[325226731,1714596680075,-500.0,0.00060547,120]
[325226732,1714596680084,-500.0,0.00060547,60]
[325226733,1714596680094,-735.13,0.00060547,120]
[325226734,1714596680103,-500.0,0.00060547,21]
[325226735,1714596680112,-624.7,0.00060547,120]
[325226736,1714596680121,-3241.16,0.00060547,120]
[325226737,1714596680131,-1071.63,0.00060547,120]
[325226738,1714596680141,-1139.17,0.00060547,120]
[325226739,1714596680150,-629.98,0.00060547,7]
[325226740,1714596680160,-513.73,0.00060547,120]
[325226741,1714596680170,-6873.87,0.00060547,120]
[325226742,1714596680180,-1040.84,0.00060547,120]
[325226743,1714596680189,-1819.25,0.00060547,2]
[325226744,1714596680199,-807.38,0.00060547,120]
[325226745,1714596680208,-684.4,0.00060547,120]
[325226746,1714596680217,-1563.93,0.00060547,120]
[325226747,1714596680227,-880.74,0.00060547,120]
[325226748,1714596680237,-500.0,0.00060547,120]
[325226749,1714596680248,-500.0,0.00060547,120]
[325226750,1714596680258,-500.0,0.00060547,120]
[325226751,1714596680268,-905.71,0.00060547,120]
[325226752,1714596680278,-1006.03,0.00060547,120]
[325226753,1714596680288,-990.64,0.00060547,120]
[325226754,1714596680298,-529.69,0.00060547,120]
[325226755,1714596680308,-500.0,0.00060547,120]
[325226756,1714596680318,-957.98,0.00060547,120]
[325226757,1714596680328,-957.45,0.00060547,120]
[325226758,1714596680339,-501.28,0.00060547,120]
[325226759,1714596680348,-500.0,0.00060547,120]
[325226760,1714596680359,-1396.65,0.00060547,30]
[325226761,1714596680369,-13131.9,0.00060547,120]
[325226762,1714596680380,-649.29,0.00060547,120]
[325226763,1714596680389,-500.0,0.00060547,120]
[325226764,1714596680400,-5415.88,0.00060547,120]
[325226765,1714596680410,-524.46,0.00060547,120]
[325226766,1714596680420,-500.0,0.00060547,120]
[325226767,1714596680438,-500.0,0.00060547,120]
[325226768,1714596680448,-1124.84,0.00060547,120]
[325226769,1714596680458,-725.84,0.00060547,120]
[325226770,1714596680468,-721.56,0.00060547,120]
[325226771,1714596680478,-2624.92,0.00060547,120]
[325226772,1714596680488,-773.09,0.00060547,120]
[325226773,1714596680502,-672.9,0.00060547,120]
[325226774,1714596680511,-671.69,0.00060547,120]
[325226775,1714596680671,-390.79484923,0.00060547,120]
[325226776,1714596680682,-904.57,0.00060547,120]
[325226777,1714596680691,-4150.6,0.00060547,120]
[325226778,1714596680701,-1064.37,0.00060547,120]
[325226779,1714596680712,-708.55,0.00060547,120]
[325226780,1714596680722,-500.0,0.00060547,120]
[325226781,1714596680732,-500.0,0.00060547,120]
[325226782,1714596680744,-2139.31,0.00060547,120]
[325226783,1714596680754,-747.59,0.00060547,120]
[325226784,1714596680765,-500.0,0.00060547,120]
[325226785,1714596680775,-1819.15,0.00060547,120]
[325226786,1714596680784,-893.59,0.00060547,120]
[325226787,1714596680795,-2548.41,0.00060547,120]
[325226788,1714596680805,-647.78,0.00060547,120]
[325226789,1714596680814,-972.62,0.00060547,120]
[325226790,1714596680824,-500.0,0.00060547,120]
[325226791,1714596680833,-953.99,0.00060547,120]
[325226792,1714596680843,-1932.29,0.00060547,120]
[325226793,1714596680853,-912.85,0.00060547,120]
[325226794,1714596680863,-631.99,0.00060547,120]
[325226795,1714596680873,-564.95,0.00060547,120]
[325226796,1714596680884,-771.7,0.00060547,120]
[325226797,1714596680894,-500.0,0.00060547,120]
[325226798,1714596680903,-1259.78,0.00060821,60]
[325226799,1714596680913,-63726.78,0.00061,15]
[325226800,1714596680922,-150.0,0.00061,120]
[325226801,1714596680932,-500.0,0.00061095,120]
[325226802,1714596680942,-605.36,0.00061095,120]
[325226803,1714596680952,-635.9,0.00061095,120]
[325226804,1714596680967,-500.0,0.00061095,120]
[325226805,1714596680977,-500.0,0.00061095,120]
[325226806,1714596680987,-905.44,0.00061095,120]
[325226807,1714596681003,-1823.07,0.00061095,120]
[325226808,1714596681012,-500.0,0.00061095,120]
[325226809,1714596681021,-1540.18,0.00061095,120]
[325226810,1714596681031,-747.85,0.00061095,120]
[325226811,1714596681040,-500.0,0.00061095,120]
[325226812,1714596681050,-582.8,0.00061095,120]
[325226813,1714596681059,-500.0,0.00061095,120]
[325226814,1714596681070,-783.32,0.00061095,120]
[325226815,1714596681080,-500.0,0.00061095,120]
[325226816,1714596681091,-660.58,0.00061095,120]
[325226817,1714596681100,-528.91,0.00061095,120]
[325226818,1714596681110,-651.79,0.00061095,120]
[325226819,1714596681120,-569.39,0.00061095,120]
[325226820,1714596681130,-533.64,0.00061095,120]
[325226821,1714596681139,-893.16,0.00061095,120]
[325226822,1714596681148,-500.0,0.00061095,120]
[325226823,1714596681158,-750.74,0.00061095,120]
[325226824,1714596681168,-500.0,0.00061095,120]
[325226825,1714596681177,-918.03,0.00061095,120]
[325226826,1714596681186,-500.0,0.00061095,120]
[325226827,1714596681196,-809.76,0.00061095,120]
[325226828,1714596681205,-816.25,0.00061095,120]
[325226829,1714596681214,-676.4,0.00061095,120]
[325226830,1714596681224,-500.0,0.00061095,120]
[325226831,1714596681234,-500.0,0.00061095,120]
[325226832,1714596681244,-725.28,0.00061095,120]
[325226833,1714596681254,-617.03,0.00061095,120]
[325226834,1714596681264,-747.13,0.00061095,120]
[325226835,1714596681274,-807.48,0.00061095,120]
[325226836,1714596681284,-500.0,0.00061095,2]
[325226837,1714596681294,-880.55,0.00061095,120]
[325226838,1714596681303,-772.32,0.00061095,120]
[325226839,1714596681313,-1424.37,0.00061095,120]
[325226840,1714596681322,-902.14,0.00061095,120]
[325226841,1714596681332,-622.31,0.00061095,120]
[325226842,1714596681342,-908.32,0.00061095,120]
[325226843,1714596681351,-1274.48,0.00061095,120]
[325226844,1714596681360,-500.0,0.00061095,120]
[325226845,1714596681370,-505.13,0.00061095,120]
[325226846,1714596681380,-2748.45,0.00061095,120]
[325226847,1714596681389,-2748.72,0.00061095,120]
[325226848,1714596681399,-751.55,0.00061095,120]
[325226849,1714596681409,-500.0,0.00061095,120]
[325226850,1714596681419,-500.0,0.00061095,120]
[325226851,1714596681429,-500.0,0.00061095,120]
[325226852,1714596681440,-891.08,0.00061095,120]
[325226853,1714596681450,-542.04,0.00061095,120]
[325226854,1714596681460,-316.30730175,0.00061095,120]
[325226855,1714596681471,-500.0,0.00061095,120]
[325226856,1714596681481,-718.42,0.00061095,120]
[325226857,1714596681491,-500.0,0.00061095,120]
[325226858,1714596681502,-876.77,0.00061095,120]
[325226859,1714596681513,-500.0,0.00061095,120]
[325226860,1714596681522,-500.0,0.00061095,120]
[325226861,1714596681532,-500.0,0.00061095,120]
[325226862,1714596681541,-500.0,0.00061095,120]
[325226863,1714596681551,-543.06,0.00061095,120]
[325226864,1714596681561,-597.36,0.00061095,120]
[325226865,1714596681570,-500.0,0.00061095,120]
[325226866,1714596681579,-847.59,0.00061095,120]
[325226867,1714596681589,-500.0,0.00061095,120]
[325226868,1714596681598,-552.66,0.00061095,120]
[325226869,1714596681608,-737.95,0.00061095,120]
[325226870,1714596681618,-467.51327192,0.00061095,120]
[325226871,1714596681628,-500.0,0.00061095,60]
[325226872,1714596681637,-735.13,0.00061095,120]
[325226873,1714596681647,-500.0,0.00061095,21]
[325226874,1714596681656,-624.7,0.00061095,120]
[325226875,1714596681666,-3241.16,0.00061095,120]
[325226876,1714596681675,-1071.63,0.00061095,120]
[325226877,1714596681685,-1139.17,0.00061095,120]
[325226879,1714596681694,-629.98,0.00061095,7]
[325226880,1714596681704,-513.73,0.00061095,120]
[325226881,1714596681714,-6873.87,0.00061095,120]
[325226882,1714596681723,-1040.84,0.00061095,120]
[325226883,1714596681733,-1819.25,0.00061095,2]
[325226884,1714596681745,-807.38,0.00061095,120]
[325226885,1714596681754,-684.4,0.00061095,120]
[325226886,1714596681763,-1563.93,0.00061095,120]
[325226887,1714596681772,-880.74,0.00061095,120]
[325226888,1714596681781,-500.0,0.00061095,120]
[325226889,1714596681791,-500.0,0.00061095,120]
[325226890,1714596681801,-500.0,0.00061095,120]
[325226891,1714596681812,-905.71,0.00061095,120]
[325226892,1714596681822,-1006.03,0.00061095,120]
[325226893,1714596681832,-990.64,0.00061095,120]
[325226894,1714596681842,-529.69,0.00061095,120]
[325226895,1714596681851,-500.0,0.00061095,120]
[325226896,1714596681861,-957.98,0.00061095,120]
[325226897,1714596681871,-957.45,0.00061095,120]
[325226898,1714596681880,-501.28,0.00061095,120]
[325226899,1714596681890,-500.0,0.00061095,120]
[325226900,1714596681899,-1396.65,0.00061095,30]
[325226901,1714596681909,-13131.9,0.00061095,120]
[325226902,1714596681918,-649.29,0.00061095,120]
[325226903,1714596681927,-540.12,0.00061095,120]
[325226904,1714596681937,-500.0,0.00061095,120]
[325226905,1714596681947,-5415.88,0.00061095,120]
[325226906,1714596681956,-524.46,0.00061095,120]
[325226907,1714596681966,-500.0,0.00061095,120]
[325226908,1714596681975,-500.0,0.00061095,120]
[325226909,1714596681987,-1124.84,0.00061095,120]
[325226910,1714596681999,-725.84,0.00061095,120]
[325226911,1714596682008,-721.56,0.00061095,120]
[325226912,1714596682018,-2624.92,0.00061095,120]
[325226913,1714596682027,-773.09,0.00061095,120]
[325226914,1714596682037,-672.9,0.00061095,120]
[325226915,1714596682048,-671.69,0.00061095,120]
[325226916,1714596682058,-904.57,0.00061095,120]
[325226917,1714596682068,-4150.6,0.00061095,120]
[325226918,1714596682078,-1064.37,0.00061095,120]
[325226919,1714596682088,-708.55,0.00061095,120]
[325226920,1714596682097,-500.0,0.00061095,120]
[325226921,1714596682107,-500.0,0.00061095,120]
[325226922,1714596682116,-2139.31,0.00061095,120]
[325226923,1714596682126,-747.59,0.00061095,120]
[325226924,1714596682135,-500.0,0.00061095,120]
[325226925,1714596682145,-1819.15,0.00061095,120]
[325226926,1714596682154,-893.59,0.00061095,120]
[325226927,1714596682164,-2548.41,0.00061095,120]
[325226928,1714596682174,-647.78,0.00061095,120]
[325226929,1714596682182,-972.62,0.00061095,120]
[325226930,1714596682192,-588.39516995,0.00061095,120]
[325226931,1714596682201,-953.99,0.00061095,120]
[325226932,1714596682210,-1932.29,0.00061095,120]
[325226933,1714596682219,-912.85,0.00061095,120]
[325226934,1714596682229,-631.99,0.00061095,120]
[325226935,1714596682239,-564.95,0.00061095,120]
[325226936,1714596682250,-771.7,0.00061095,120]
[325226937,1714596682260,-500.0,0.00061095,120]
[325226938,1714596682269,-1259.78,0.00061369,65]
[325226939,1714596682280,-345.76981213,0.000616,120]
[325226940,1714596682289,-500.0,0.00061643,120]
[325226941,1714596682298,-605.36,0.00061643,120]
[325226942,1714596682308,-635.9,0.00061643,120]
[325226943,1714596682318,-500.0,0.00061643,120]
[325226944,1714596682327,-500.0,0.00061643,120]
[325226945,1714596682336,-905.44,0.00061643,120]
[325226946,1714596682346,-1823.07,0.00061643,120]
[325226947,1714596682356,-500.0,0.00061643,120]
[325226948,1714596682365,-1540.18,0.00061643,120]
[325226949,1714596682375,-747.85,0.00061643,120]
[325226950,1714596682384,-500.0,0.00061643,120]
[325226951,1714596682394,-582.8,0.00061643,120]
[325226952,1714596682404,-500.0,0.00061643,120]
[325226953,1714596682414,-783.32,0.00061643,120]
[325226954,1714596682423,-500.0,0.00061643,120]
[325226955,1714596682434,-660.58,0.00061643,120]
[325226956,1714596682444,-528.91,0.00061643,120]
[325226957,1714596682454,-651.79,0.00061643,120]
[325226958,1714596682463,-569.39,0.00061643,120]
[325226959,1714596682473,-533.64,0.00061643,120]
[325226960,1714596682483,-893.16,0.00061643,120]
[325226961,1714596682493,-500.0,0.00061643,120]
[325226962,1714596682504,-750.74,0.00061643,120]
[325226963,1714596682514,-500.0,0.00061643,120]
[325226964,1714596682524,-918.03,0.00061643,120]
[325226965,1714596682533,-500.0,0.00061643,120]
[325226966,1714596682543,-809.76,0.00061643,120]
[325226967,1714596682552,-816.25,0.00061643,120]
[325226968,1714596682562,-676.4,0.00061643,120]
[325226969,1714596682571,-500.0,0.00061643,120]
[325226970,1714596682580,-500.0,0.00061643,120]
[325226971,1714596682590,-725.28,0.00061643,120]
[325226972,1714596682599,-617.03,0.00061643,120]
[325226973,1714596682608,-747.13,0.00061643,120]
[325226974,1714596682618,-807.48,0.00061643,120]
[325226975,1714596682627,-154.20375803,0.00061643,2]
[325226976,1714596682636,-880.55,0.00061643,120]
[325226977,1714596682646,-772.32,0.00061643,120]
[325226978,1714596682655,-1424.37,0.00061643,120]
[325226979,1714596682665,-902.14,0.00061643,120]
[325226980,1714596682674,-622.31,0.00061643,120]
[325226981,1714596682684,-908.32,0.00061643,120]
[325226982,1714596682694,-1274.48,0.00061643,120]
[325226983,1714596682703,-500.0,0.00061643,120]
[325226984,1714596682712,-505.13,0.00061643,120]
[325226985,1714596682723,-2748.45,0.00061643,120]
[325226986,1714596682733,-2748.72,0.00061643,120]
[325226987,1714596682742,-751.55,0.00061643,120]
[325226988,1714596682754,-500.0,0.00061643,120]
[325226989,1714596682764,-500.0,0.00061643,120]
[325226990,1714596682773,-500.0,0.00061643,120]
[325226991,1714596682782,-891.08,0.00061643,120]
[325226992,1714596682791,-542.04,0.00061643,120]
[325226993,1714596682802,-500.0,0.00061643,120]
[325226994,1714596682811,-718.42,0.00061643,120]
[325226995,1714596682820,-500.0,0.00061643,120]
[325226996,1714596682829,-876.77,0.00061643,120]
[325226997,1714596682839,-500.0,0.00061643,120]
[325226998,1714596682848,-184.75551043,0.00061643,120]
[325226999,1714596682858,-552.8243745,0.00061643,120]
[325227000,1714596682867,-500.0,0.00061643,120]
[325227001,1714596682877,-543.06,0.00061643,120]
[325227002,1714596682885,-597.36,0.00061643,120]
[325227003,1714596682894,-500.0,0.00061643,120]
[325227004,1714596682904,-847.59,0.00061643,120]
[325227005,1714596682913,-406.92601722,0.00061643,120]
[325227006,1714596682922,-552.66,0.00061643,120]
[325227007,1714596682932,-737.95,0.00061643,120]
[325227008,1714596682942,-500.0,0.00061643,60]
[325227009,1714596682951,-735.13,0.00061643,120]
[325227010,1714596682966,-500.0,0.00061643,21]
[325227011,1714596682975,-624.7,0.00061643,120]
[325227012,1714596682985,-3241.16,0.00061643,120]
[325227013,1714596682997,-1071.63,0.00061643,120]
[325227014,1714596683009,-1139.17,0.00061643,120]
[325227015,1714596683019,-629.98,0.00061643,7]
[325227016,1714596683030,-513.73,0.00061643,120]
[325227017,1714596683039,-6873.87,0.00061643,120]
[325227018,1714596683049,-1040.84,0.00061643,120]
[325227019,1714596683059,-1819.25,0.00061643,2]
[325227020,1714596683070,-807.38,0.00061643,120]
[325227021,1714596683117,-684.4,0.00061643,120]
[325227022,1714596683127,-1563.93,0.00061643,120]
[325227023,1714596683136,-880.74,0.00061643,120]
[325227024,1714596683145,-500.0,0.00061643,120]
[325227025,1714596683154,-500.0,0.00061643,120]
[325227026,1714596683164,-500.0,0.00061643,120]
[325227027,1714596683173,-905.71,0.00061643,120]
[325227028,1714596683183,-1006.03,0.00061643,120]
[325227029,1714596683191,-990.64,0.00061643,120]
[325227030,1714596683201,-529.69,0.00061643,120]
[325227031,1714596683210,-500.0,0.00061643,120]
[325227032,1714596683219,-957.98,0.00061643,120]
[325227033,1714596683228,-957.45,0.00061643,120]
[325227034,1714596683237,-501.28,0.00061643,120]
[325227035,1714596683249,-500.0,0.00061643,120]
[325227036,1714596683258,-1396.65,0.00061643,30]
[325227037,1714596683268,-13131.9,0.00061643,120]
[325227038,1714596683277,-649.29,0.00061643,120]
[325227039,1714596683285,-540.12,0.00061643,120]
[325227040,1714596683295,-500.0,0.00061643,120]
[325227041,1714596683305,-5415.88,0.00061643,120]
[325227042,1714596683314,-524.46,0.00061643,120]
[325227043,1714596683323,-281.40274919,0.00061643,120]
[325227044,1714596683333,-199.85697616,0.00061643,120]
[325227045,1714596683342,-1124.84,0.00061643,120]
[325227046,1714596683352,-725.84,0.00061643,120]
[325227047,1714596683362,-721.56,0.00061643,120]
[325227048,1714596683371,-2624.92,0.00061643,120]
[325227049,1714596683382,-773.09,0.00061643,120]
[325227050,1714596683391,-672.9,0.00061643,120]
[325227051,1714596683401,-671.69,0.00061643,120]
[325227052,1714596683410,-904.57,0.00061643,120]
[325227053,1714596683420,-4150.6,0.00061643,120]
[325227054,1714596683432,-1064.37,0.00061643,120]
[325227055,1714596683442,-708.55,0.00061643,120]
[325227056,1714596683452,-500.0,0.00061643,120]
[325227057,1714596683463,-500.0,0.00061643,120]
[325227058,1714596683473,-2139.31,0.00061643,120]
[325227059,1714596683482,-747.59,0.00061643,120]
[325227060,1714596683492,-500.0,0.00061643,120]
[325227061,1714596683504,-1819.15,0.00061643,120]
[325227062,1714596683513,-893.59,0.00061643,120]
[325227063,1714596683524,-2548.41,0.00061643,120]
[325227064,1714596683534,-647.78,0.00061643,120]
[325227065,1714596683543,-972.62,0.00061643,120]
[325227066,1714596683552,-953.99,0.00061643,120]
[325227067,1714596683563,-1932.29,0.00061643,120]
[325227068,1714596683572,-912.85,0.00061643,120]
[325227069,1714596683583,-631.99,0.00061643,120]
[325227070,1714596683593,-564.95,0.00061643,120]
[325227071,1714596683602,-771.7,0.00061643,120]
[325227072,1714596683612,-500.0,0.00061643,120]
[325227073,1714596683621,-1000.0,0.00061649,30]
[325227074,1714596683632,-1000.0,0.00061649,30]
[325227075,1714596683642,-151.0,0.00061726,120]
[325227076,1714596683651,-1259.78,0.00061917,70]
[325227077,1714596683661,-500.0,0.00062191,120]
[325227078,1714596683670,-605.36,0.00062191,120]
[325227079,1714596683680,-635.9,0.00062191,120]
[325227080,1714596683689,-500.0,0.00062191,120]
[325227081,1714596683700,-500.0,0.00062191,120]
[325227082,1714596683710,-905.44,0.00062191,120]
[325227083,1714596683720,-1823.07,0.00062191,120]
[325227084,1714596683730,-500.0,0.00062191,120]
[325227085,1714596683740,-1540.18,0.00062191,120]
[325227086,1714596683751,-747.85,0.00062191,120]
[325227087,1714596683761,-358.01074467,0.00062191,120]
[325227088,1714596683771,-582.8,0.00062191,120]
[325227089,1714596683780,-500.0,0.00062191,120]
[325227090,1714596683790,-783.32,0.00062191,120]
[325227091,1714596683799,-500.0,0.00062191,120]
[325227092,1714596683808,-660.58,0.00062191,120]
[325227093,1714596683817,-528.91,0.00062191,120]
[325227094,1714596683827,-651.79,0.00062191,120]
[325227095,1714596683837,-569.39,0.00062191,120]
[325227096,1714596683846,-533.64,0.00062191,120]
[325227097,1714596683855,-893.16,0.00062191,120]
[325227098,1714596683865,-500.0,0.00062191,120]
[325227099,1714596683875,-750.74,0.00062191,120]
[325227100,1714596683885,-500.0,0.00062191,120]
[325227101,1714596683895,-918.03,0.00062191,120]
[325227102,1714596683905,-500.0,0.00062191,120]
[325227103,1714596683915,-809.76,0.00062191,120]
[325227104,1714596683924,-816.25,0.00062191,120]
[325227105,1714596683934,-676.4,0.00062191,120]
[325227106,1714596683944,-500.0,0.00062191,120]
[325227107,1714596683953,-500.0,0.00062191,120]
[325227108,1714596683962,-725.28,0.00062191,120]
[325227109,1714596683972,-617.03,0.00062191,120]
[325227110,1714596683984,-747.13,0.00062191,120]
[325227111,1714596684000,-807.48,0.00062191,120]
[325227112,1714596684009,-880.55,0.00062191,120]
[325227113,1714596684019,-772.32,0.00062191,120]
[325227114,1714596684030,-902.14,0.00062191,120]
[325227115,1714596684039,-1424.37,0.00062191,120]
[325227116,1714596684049,-622.31,0.00062191,120]
[325227117,1714596684059,-908.32,0.00062191,120]
[325227118,1714596684069,-1274.48,0.00062191,120]
[325227119,1714596684079,-500.0,0.00062191,120]
[325227120,1714596684088,-505.13,0.00062191,120]
[325227121,1714596684098,-2748.45,0.00062191,120]
[325227122,1714596684107,-2748.72,0.00062191,120]
[325227123,1714596684117,-751.55,0.00062191,120]
[325227124,1714596684126,-500.0,0.00062191,120]
[325227125,1714596684136,-500.0,0.00062191,120]
[325227126,1714596684145,-500.0,0.00062191,120]
[325227127,1714596684155,-891.08,0.00062191,120]
[325227128,1714596684164,-542.04,0.00062191,120]